bitfinex-derivatives/quotes_SOLF0:USTF0_20250320
["timestamp","ask_amount","ask_price","bid_price","bid_amount"]
[1742482805780,34.33757538,131.8,131.76,46.23901361]
[1742482806289,7.5918,131.79,131.76,46.23901361]
[1742482806787,41.92867538,131.8,131.76,46.23901361]
[1742482807091,34.33757538,131.8,131.78,17.50283082]
[1742482807493,41.92847538,131.8,131.78,17.50283082]
[1742482807795,34.33757538,131.8,131.78,17.50283082]
[1742482808586,34.33757538,131.8,131.76,46.23901361]
[1742482808792,34.33757538,131.8,131.78,17.50283082]
[1742482809497,34.33757538,131.8,131.79,7.5914]
[1742482810398,34.33757538,131.8,131.78,25.09453082]
[1742482812198,34.33757538,131.8,131.78,17.50283082]
[1742482812396,63.01757538,131.8,131.74,17.50283082]
[1742482813295,7.5917,131.79,131.76,7.5928]
[1742482813501,63.01757538,131.8,131.76,17.50283082]
[1742482813702,0.0511053,131.79,131.76,17.55860942]
[1742482813901,0.0511053,131.79,131.76,0.0557786]
[1742482814503,7.5926,131.77,131.76,0.0557786]
[1742482814702,4.1444,131.78,131.72,17.50283082]
[1742482814895,4.1444,131.78,131.72,46.18283082]
[1742482815100,7.5935,131.76,131.73,7.5949]
[1742482815897,7.65079699,131.76,131.73,7.64707352]
[1742482816299,7.5939,131.75,131.73,7.64707352]
[1742482816499,0.05729699,131.76,131.73,0.05217352]
[1742482816700,0.05729699,131.76,131.71,250.5]
[1742482816899,0.05729699,131.76,131.74,7.594]
[1742482817104,0.05729699,131.76,131.72,46.18283082]
[1742482817312,0.05729699,131.76,131.72,28.68]
[1742482817608,28.73729699,131.76,131.7,36.2764]
[1742482817808,7.5953,131.73,131.7,36.2764]
[1742482818009,7.5953,131.73,131.71,7.596]
[1742482818211,28.68,131.76,131.72,0.05651799]
[1742482818406,0.05591316,131.73,131.72,0.05651799]
[1742482818705,0.05591316,131.73,131.72,7.65141799]
[1742482819602,0.05591316,131.73,131.72,0.05651799]
[1742482819999,0.05591316,131.73,131.72,7.65201799]
[1742482820715,0.05591316,131.73,131.72,0.05651799]
[1742482821414,7.65081316,131.73,131.72,0.05651799]
[1742482821612,0.05591316,131.73,131.68,250.5]
[1742482822112,28.73591316,131.73,131.68,250.5]
[1742482822509,0.05591316,131.73,131.69,17.50283082]
[1742482822708,0.05591316,131.73,131.71,17.50283082]
[1742482822904,0.05591316,131.73,131.72,7.5955]
[1742482823711,0.05591316,131.73,131.71,36.2758]
[1742482824016,7.65111316,131.73,131.71,28.68]
[1742482824513,0.05591316,131.73,131.71,28.68]
[1742482824913,0.05591316,131.73,131.71,36.276]
[1742482827117,0.05591316,131.73,131.71,7.596]
[1742482827415,7.65101316,131.73,131.7,7.65448345]
[1742482827818,7.65101316,131.73,131.7,0.05818345]
[1742482828213,7.65101316,131.73,131.7,7.65448345]
[1742482829320,0.05591316,131.73,131.71,7.5959]
[1742482830019,0.05591316,131.73,131.72,7.5955]
[1742482830414,0.05591316,131.73,131.72,36.2755]
[1742482831611,0.05591316,131.73,131.71,7.5958]
[1742482832419,0.05591316,131.73,131.72,7.5955]
[1742482833422,0.05591316,131.73,131.71,7.5958]
[1742482833720,0.05591316,131.73,131.7,0.05818345]
[1742482834820,0.05591316,131.73,131.66,41.71152433]
[1742482835019,28.68,131.72,131.66,41.71152433]
[1742482835220,36.7692,131.72,131.66,41.71152433]
[1742482835421,36.7692,131.72,131.65,17.50283082]
[1742482835620,36.7692,131.72,131.65,46.18283082]
[1742482836028,0.04984851,131.7,131.67,0.04851945]
[1742482837529,28.68,131.69,131.63,41.71152433]
[1742482837821,28.68,131.69,131.66,7.5985]
[1742482838028,28.68,131.69,131.63,59.21435515]
[1742482838427,28.68,131.69,131.63,17.50283082]
[1742482838628,0.05602879,131.67,131.65,0.05664763]
[1742482839216,0.05602879,131.67,131.61,250.56]
[1742482839422,0.05602879,131.67,131.61,268.06283082]
[1742482839727,0.05602879,131.67,131.61,250.56]
[1742482840125,0.05602879,131.67,131.61,268.06283082]
[1742482840527,0.05602879,131.67,131.63,0.0576075]
[1742482840730,7.5995,131.66,131.63,0.0576075]
[1742482840924,37.1082,131.66,131.63,0.0576075]
[1742482841126,54.61103082,131.66,131.57,64.45312945]
[1742482841322,17.50283082,131.64,131.57,64.45312945]
[1742482841522,28.68,131.63,131.57,64.45312945]
[1742482841928,7.6013,131.62,131.57,64.45312945]
[1742482842332,0.0510082,131.61,131.58,0.04907273]
[1742482842533,7.6529082,131.61,131.58,0.04907273]
[1742482842829,0.0510082,131.61,131.57,64.45312945]
[1742482843032,0.0510082,131.61,131.57,72.05672945]
[1742482843233,0.0510082,131.61,131.57,7.6036]
[1742482843933,0.0510082,131.61,131.58,0.0501244]
[1742482845432,0.0510082,131.61,131.59,17.50283082]
[1742482846335,0.0510082,131.61,131.58,28.7301244]
[1742482846834,0.0510082,131.61,131.58,0.0501244]
[1742482847042,7.6532082,131.61,131.58,0.0501244]
[1742482847831,0.0510082,131.61,131.58,0.0501244]
[1742482848237,7.6532082,131.61,131.58,0.0501244]
[1742482848637,0.0510082,131.61,131.58,0.0501244]
[1742482848840,7.603,131.59,131.58,0.0501244]
[1742482849042,7.603,131.59,131.54,7.6057]
[1742482849244,32.8712,131.59,131.51,46.18283082]
[1742482849434,7.6037,131.58,131.53,7.606]
[1742482849635,32.8712,131.59,131.53,17.50283082]
[1742482850142,0.05171359,131.57,131.55,7.66158234]
[1742482850434,0.05171359,131.57,131.55,17.55921316]
[1742482850641,4.1607,131.6,131.58,7.6033]
[1742482850842,4.1607,131.6,131.57,17.50283082]
[1742482851241,4.1607,131.6,131.57,25.10683082]
[1742482851434,4.1607,131.6,131.57,17.50283082]
[1742482851635,4.1607,131.6,131.55,46.18283082]
[1742482851944,7.6031,131.59,131.57,0.05537878]
[1742482852142,32.89722735,131.6,131.57,0.05537878]
[1742482852833,50.40005817,131.6,131.51,17.50283082]
[1742482853042,17.50283082,131.58,131.49,268.22283082]
[1742482853348,7.6056,131.55,131.51,7.6072]
[1742482853537,32.635,131.57,131.49,268.22283082]
[1742482853947,7.66377264,131.54,131.52,0.05566202]
[1742482854242,36.36377264,131.54,131.52,0.05566202]
[1742482854442,28.75747264,131.54,131.52,0.05566202]
[1742482854646,0.05747264,131.54,131.52,0.05566202]
[1742482855740,0.05747264,131.54,131.49,250.72]
[1742482855938,0.05747264,131.54,131.47,17.50283082]
[1742482855939,28.7,131.53,131.47,17.50283082]
[1742482856138,28.7,131.53,131.49,17.50283082]
[1742482856339,28.7,131.53,131.5,7.6076]
[1742482856541,28.7,131.53,131.43,250.84]
[1742482856844,36.3068,131.53,131.48,7.6088]
[1742482857035,0.05201131,131.49,131.47,0.05037111]
[1742482857345,28.75394882,131.49,131.47,0.05037111]
[1742482858143,4.2033,131.48,131.47,0.05037111]
[1742482859441,4.2033,131.48,131.42,17.50283082]
[1742482860340,4.2033,131.48,131.4,17.50283082]
[1742482860642,0.05615251,131.45,131.43,0.04795633]
[1742482860946,28.75615251,131.45,131.43,0.04795633]
[1742482862144,0.05615251,131.45,131.43,0.04795633]
[1742482862445,28.72,131.5,131.44,17.50283082]
[1742482863242,28.72,131.5,131.46,7.6102]
[1742482863447,0.04820648,131.48,131.46,0.05633115]
[1742482864448,28.72,131.47,131.39,17.50283082]
[1742482864946,36.3303,131.47,131.42,7.6127]
[1742482865150,4.3503,131.46,131.39,17.50283082]
[1742482865444,11.961,131.46,131.41,7.613]
[1742482865651,0.04906714,131.44,131.41,0.05235646]
[1742482866046,0.04906714,131.44,131.42,7.6124]
[1742482866249,0.04906714,131.44,131.41,0.05235646]
[1742482867453,28.76906714,131.44,131.41,0.05235646]
[1742482868345,17.50283082,131.43,131.41,0.05235646]
[1742482868544,17.50283082,131.43,131.33,46.22283082]
[1742482868747,17.50283082,131.43,131.33,17.50283082]
[1742482869254,7.614,131.4,131.35,7.6167]
[1742482869451,28.72,131.39,131.35,7.6167]
[1742482869757,17.50283082,131.36,131.28,41.71152433]
[1742482869953,17.50283082,131.32,131.28,41.71152433]
[1742482870153,33.0199,131.31,131.28,41.71152433]
[1742482870351,7.6203,131.29,131.28,41.71152433]
[1742482870657,17.50283082,131.3,131.28,41.71152433]
[1742482870955,268.65491983,131.3,131.26,98.24375993]
[1742482871164,28.12090193,131.27,131.25,209.32330524]
[1742482871454,28.84,131.26,131.25,209.32330524]
[1742482871857,36.4621,131.26,131.25,209.32330524]
[1742482872157,28.84,131.26,131.18,0.3662]
[1742482872547,28.9,131.26,131.18,29.2662]
[1742482872755,0.05089894,131.23,131.18,29.2662]
[1742482873057,0.05089894,131.23,131.18,28.9]
[1742482873254,0.05089894,131.23,131.17,0.4094]
[1742482873454,36.65469894,131.23,131.17,0.4094]
[1742482873655,29.03089894,131.23,131.17,0.4094]
[1742482874851,28.12090193,131.22,131.14,15.31972906]
[1742482875050,28.12090193,131.2,131.14,4.6905]
[1742482875254,29.08,131.19,131.14,4.6905]
[1742482875448,0.05810923,131.18,131.14,4.6905]
[1742482875652,0.05810923,131.18,131.11,33.2966]
[1742482875861,0.05810923,131.18,131.13,7.6296]
[1742482876050,0.05810923,131.18,131.11,61.41750193]
[1742482876763,34.33297505,131.22,131.14,28.12090193]
[1742482876967,34.33297505,131.22,131.17,7.6273]
[1742482877269,34.33297505,131.22,131.15,29.14]
[1742482877465,34.33297505,131.22,131.16,28.12090193]
[1742482877664,34.33297505,131.22,131.18,28.12090193]
[1742482877865,29.2,131.25,131.18,57.38090193]
[1742482878058,0.05433798,131.21,131.19,0.05407476]
[1742482880464,0.05433798,131.21,131.13,29.4]
[1742482880664,4.1783,131.21,131.13,29.4]
[1742482880963,365.0,131.24,131.15,28.12090193]
[1742482881160,365.0,131.24,131.17,28.12090193]
[1742482881361,29.44,131.25,131.17,57.56090193]
[1742482881558,29.44,131.25,131.18,7.6266]
[1742482881757,0.0548847,131.22,131.17,29.44]
[1742482882061,7.6254,131.21,131.14,29.58]
[1742482882262,57.72090193,131.22,131.12,29.6]
[1742482882463,0.05764428,131.19,131.11,32.33750193]
[1742482882661,29.64,131.19,131.13,7.6295]
[1742482882863,0.0490667,131.16,131.11,32.33750193]
[1742482883063,0.0490667,131.16,131.11,33.8566]
[1742482883259,0.0490667,131.16,131.11,4.2166]
[1742482883460,0.0490667,131.16,131.1,8.3722]
[1742482883666,29.6690667,131.16,131.1,8.3722]
[1742482883863,0.0490667,131.16,131.1,8.3722]
[1742482884267,7.6770667,131.16,131.1,8.3722]
[1742482884771,28.12090193,131.14,131.0,313.46]
[1742482884965,365.0,131.13,131.02,4.0175]
[1742482885263,0.05259273,131.09,131.05,7.634]
[1742482885464,0.05259273,131.09,131.02,33.6375]
[1742482885667,0.05259273,131.09,131.01,8.5682]
[1742482885861,29.88,131.09,131.01,8.5682]
[1742482886258,0.05087675,131.06,131.04,7.6345]
[1742482886465,0.05087675,131.06,131.03,30.02]
[1742482886763,0.05087675,131.06,130.98,4.0175]
[1742482886764,7.68507675,131.06,131.0,37.6367]
[1742482886971,0.05087675,131.06,131.0,30.0]
[1742482887263,0.05087675,131.06,130.95,251.54]
[1742482887264,0.05663298,131.04,130.9,279.66090193]
[1742482887460,34.41613298,131.04,130.91,42.4935]
[1742482887662,34.3595,131.04,130.94,28.12090193]
[1742482887866,0.05532624,130.99,130.95,30.08]
[1742482888661,0.05532624,130.99,130.93,28.12090193]
[1742482888965,0.05532624,130.99,130.97,7.6387]
[1742482889162,0.05532624,130.99,130.94,28.12090193]
[1742482889367,423.26090193,131.03,130.93,30.14]
[1742482889563,0.05788307,130.98,130.93,30.14]
[1742482889965,0.05788307,130.98,130.92,42.4995]
[1742482890567,0.05788307,130.98,130.92,12.3395]
[1742482890762,0.05788307,130.98,130.92,42.5395]
[1742482891272,0.05788307,130.98,130.95,7.6401]
[1742482891565,0.05788307,130.98,130.92,42.5395]
[1742482891964,0.05788307,130.98,130.92,34.2069]
[1742482892468,0.05788307,130.98,130.88,28.12090193]
[1742482892671,7.6397,130.96,130.91,7.642]
[1742482892866,30.24,130.96,130.87,3.9791]
[1742482893062,0.05812848,130.94,130.86,36.24260193]
[1742482893267,395.24,130.93,130.83,30.24]
[1742482893470,393.12090193,130.92,130.81,36.31910193]
[1742482893767,0.05181519,130.89,130.81,38.4382]
[1742482894070,393.12090193,130.88,130.78,3.9791]
[1742482894265,0.0507406,130.86,130.78,3.9791]
[1742482894464,30.3507406,130.86,130.78,32.10000193]
[1742482894671,365.0,130.87,130.84,7.6463]
[1742482894872,34.4567,130.88,130.84,7.6463]
[1742482895062,34.4567,130.88,130.82,30.34]
[1742482895063,0.05562495,130.87,130.82,30.34]
[1742482895268,0.05562495,130.87,130.84,7.6464]
[1742482895773,7.70082495,130.87,130.82,7.6477]
[1742482896073,30.68,130.88,130.79,38.8785]
[1742482896270,0.05666377,130.86,130.83,7.6466]
[1742482896472,0.05666377,130.86,130.79,38.8785]
[1742482896772,0.05666377,130.86,130.79,4.2178]
[1742482896971,30.82,130.85,130.79,4.2178]
[1742482897467,30.82,130.85,130.78,3.9791]
[1742482897663,0.05019963,130.83,130.78,3.9791]
[1742482897868,0.05019963,130.83,130.82,7.6469]
[1742482898372,0.05019963,130.83,130.81,38.6674]
[1742482898874,0.05019963,130.83,130.81,31.02]
[1742482899168,0.05019963,130.83,130.76,4.271]
[1742482899373,0.05019963,130.83,130.77,31.22]
[1742482900069,0.05019963,130.83,130.82,7.6469]
[1742482900674,0.05019963,130.83,130.8,31.4]
[1742482901471,0.05019963,130.83,130.82,7.6469]
[1742482901673,0.05019963,130.83,130.8,31.4]
[1742482901976,0.05019963,130.83,130.82,7.6469]
[1742482902469,0.05019963,130.83,130.78,4.0393]
[1742482902681,0.05019963,130.83,130.79,7.6486]
[1742482903375,0.05019963,130.83,130.78,7.6491]
[1742482903676,0.05019963,130.83,130.77,4.0645]
[1742482904077,0.05019963,130.83,130.78,31.5]
[1742482904273,0.05019963,130.83,130.8,45.93175804]
[1742482904471,365.0,130.87,130.78,4.21]
[1742482904678,31.52,130.86,130.76,54.34295804]
[1742482904970,45.93175804,130.81,130.69,45.93175804]
[1742482905179,31.52,130.8,130.7,8.4112]
[1742482905378,31.52,130.8,130.7,39.9712]
[1742482905769,0.05537757,130.76,130.74,0.04894649]
[1742482905971,0.05537757,130.76,130.75,7.6506]
[1742482906576,0.05537757,130.76,130.74,0.04894649]
[1742482908082,45.93175804,130.75,130.64,252.26]
[1742482908280,31.6,130.74,130.7,7.6539]
[1742482908478,31.6,130.74,130.64,283.86]
[1742482908981,45.93175804,130.72,130.64,283.86]
[1742482909182,0.04983542,130.7,130.64,252.26]
[1742482909782,0.04983542,130.7,130.68,7.6549]
[1742482909981,0.04983542,130.7,130.64,252.26]
[1742482910486,0.04983542,130.7,130.67,7.6553]
[1742482910784,45.93175804,130.69,130.59,252.34]
[1742482910977,31.78,130.68,130.65,7.6567]
[1742482911183,0.05352079,130.65,130.59,8.1205]
[1742482911373,0.05352079,130.65,130.46,23.0041]
[1742482911374,45.93175804,130.63,130.46,23.0041]
[1742482911575,45.93175804,130.61,130.49,45.93175804]
[1742482912078,0.05459643,130.56,130.5,32.12]
[1742482912485,32.12,130.62,130.61,7.6592]
[1742482912682,32.12,130.62,130.55,32.18]
[1742482912887,32.12,130.62,130.56,8.3567]
[1742482913088,365.0,130.64,130.56,8.3567]
[1742482913288,32.18,130.65,130.57,32.18]
[1742482913492,0.05604607,130.61,130.59,0.05479649]
[1742482913894,0.05604607,130.61,130.6,7.6598]
[1742482914391,0.05604607,130.61,130.59,7.71509649]
[1742482914693,0.05604607,130.61,130.59,0.05479649]
[1742482915097,0.05604607,130.61,130.6,7.6598]
[1742482915594,0.05604607,130.61,130.59,7.71509649]
[1742482915794,0.05604607,130.61,130.59,0.05479649]
[1742482915996,0.05604607,130.61,130.6,7.6598]
[1742482916699,0.05604607,130.61,130.59,0.05479649]
[1742482916700,0.05604607,130.61,130.59,7.71509649]
[1742482916896,0.05604607,130.61,130.59,0.05479649]
[1742482917298,0.05604607,130.61,130.6,7.6598]
[1742482917797,0.05604607,130.61,130.59,0.05479649]
[1742482918101,28.43445671,130.61,130.48,313.35841064]
[1742482918300,32.57791064,130.61,130.49,12.5072]
[1742482918693,32.57791064,130.61,130.51,28.37841064]
[1742482918994,32.38,130.62,130.52,32.42]
[1742482919199,32.38,130.62,130.49,44.9472]
[1742482919200,0.05292283,130.57,130.49,44.9472]
[1742482919499,46.12303585,130.61,130.5,46.12303585]
[1742482919694,0.0547468,130.54,130.5,46.12303585]
[1742482919895,397.38,130.62,130.5,46.12303585]
[1742482920093,32.38,130.62,130.53,46.12303585]
[1742482920399,32.38,130.62,130.54,32.4]
[1742482920700,32.38,130.62,130.55,252.6]
[1742482920899,0.05872008,130.6,130.57,0.05727017]
[1742482921801,32.4,130.59,130.57,0.05727017]
[1742482922801,7.661,130.58,130.57,0.05727017]
[1742482923102,36.3858,130.59,130.57,0.05727017]
[1742482923498,46.12303585,130.58,130.5,252.62]
[1742482923801,46.12303585,130.58,130.5,260.2855]
[1742482924103,46.12303585,130.58,130.5,252.62]
[1742482924701,0.0524537,130.55,130.5,252.62]
[1742482924897,0.0524537,130.55,130.51,7.6647]
[1742482925199,0.0524537,130.55,130.5,252.62]
[1742482925904,0.0524537,130.55,130.51,32.5]
[1742482926098,0.0524537,130.55,130.54,7.6633]
[1742482926698,0.0524537,130.55,130.53,7.6637]
[1742482926899,0.0524537,130.55,130.51,32.5]
[1742482927204,0.0524537,130.55,130.52,7.6639]
[1742482927400,0.0524537,130.55,130.51,32.52]
[1742482927699,0.0524537,130.55,130.52,7.6644]
[1742482927901,0.0524537,130.55,130.5,298.74303585]
[1742482928304,0.0524537,130.55,130.52,7.6642]
[1742482929092,0.0524537,130.55,130.53,7.6638]
[1742482929296,0.0524537,130.55,130.5,252.62]
[1742482929600,0.0524537,130.55,130.54,7.6633]
[1742482930504,7.7152537,130.55,130.5,252.62]
[1742482930700,0.0524537,130.55,130.5,252.62]
[1742482931703,0.0524537,130.55,130.52,7.6642]
[1742482931904,0.0524537,130.55,130.5,252.62]
[1742482932809,0.0524537,130.55,130.54,7.6633]
[1742482934208,0.0524537,130.55,130.49,12.5072]
[1742482935010,0.0524537,130.55,130.5,32.48]
[1742482935211,0.0524537,130.55,130.51,46.12303585]
[1742482935409,0.0524537,130.55,130.54,7.6633]
[1742482936905,32.48,130.6,130.59,7.6604]
[1742482937110,397.46,130.62,130.55,32.46]
[1742482937409,397.46,130.62,130.56,4.3322]
[1742482938010,397.46,130.62,130.6,7.6595]
[1742482938512,397.50956555,130.62,130.59,7.6599]
[1742482938711,397.50956555,130.62,130.58,0.05407411]
[1742482938907,32.50956555,130.62,130.58,0.05407411]
[1742482939212,32.50956555,130.62,130.56,8.6536]
[1742482939603,32.50956555,130.62,130.6,7.6595]
[1742482939809,365.0,130.61,130.47,252.78]
[1742482940009,28.37890234,130.58,130.49,4.275]
[1742482940215,32.4,130.57,130.49,4.275]
[1742482940417,0.05455698,130.55,130.49,4.275]
[1742482940811,0.05455698,130.55,130.54,7.6633]
[1742482941115,397.38,130.6,130.5,32.36]
[1742482941310,365.0,130.6,130.55,7.6624]
[1742482941506,365.0,130.6,130.53,32.36]
[1742482942008,365.0,130.6,130.55,0.05371003]
[1742482942215,0.05872908,130.58,130.56,32.36]
[1742482942414,41.42022838,130.63,130.57,4.2128]
[1742482942610,7.6594,130.61,130.56,36.5735]
[1742482942919,41.42022838,130.63,130.56,64.95240234]
[1742482943119,41.42022838,130.63,130.57,4.0197]
[1742482943515,41.42022838,130.63,130.62,7.6587]
[1742482944619,259.66772489,130.63,130.62,7.6587]
[1742482947016,0.05702574,130.64,130.61,7.6591]
[1742482947323,0.05702574,130.64,130.6,4.1376]
[1742482947813,0.05702574,130.64,130.59,32.33151272]
[1742482948014,0.05702574,130.64,130.59,0.05151272]
[1742482948411,443.35056812,130.63,130.59,0.05151272]
[1742482948616,46.09056812,130.61,130.5,12.4945]
[1742482948817,46.09056812,130.51,130.4,21.19947611]
[1742482949018,32.44,130.5,130.45,7.6682]
[1742482949223,32.44,130.52,130.42,4.3255]
[1742482949414,78.53056812,130.52,130.42,4.3255]
[1742482949719,46.09056812,130.49,130.41,32.5]
[1742482949919,46.09056812,130.49,130.4,4.3628]
[1742482949920,7.6675,130.47,130.46,0.04850295]
[1742482950310,397.54868505,130.48,130.45,0.05045395]
[1742482950514,7.6696,130.44,130.38,4.1968]
[1742482950714,397.5567471,130.48,130.45,0.04845153]
[1742482950920,397.5,130.48,130.4,46.09056812]
[1742482951122,32.54845717,130.48,130.45,0.05060365]
[1742482951322,32.5,130.48,130.45,0.05060365]
[1742482951524,32.5,130.48,130.28,360.33433025]
[1742482951525,46.09056812,130.46,130.35,205.34660325]
[1742482951821,46.09056812,130.42,130.35,205.34660325]
[1742482952018,32.72,130.41,130.35,205.34660325]
[1742482952619,0.0551265,130.4,130.35,205.34660325]
[1742482952916,0.0551265,130.4,130.32,46.09056812]
[1742482952917,0.0551265,130.4,130.33,7.6756]
[1742482953125,32.72,130.41,130.31,4.023]
[1742482953126,397.72,130.41,130.31,4.023]
[1742482953425,0.05546221,130.38,130.31,4.023]
[1742482953618,0.05546221,130.38,130.33,7.6756]
[1742482953818,32.75546221,130.38,130.31,4.023]
[1742482954618,411.09056812,130.37,130.2,46.09056812]
[1742482954819,365.0,130.37,130.26,46.09056812]
[1742482955022,365.0,130.37,130.29,46.09056812]
[1742482955326,365.0,130.37,130.27,32.7]
[1742482955520,397.74,130.37,130.27,32.7]
[1742482956317,0.05328854,130.33,130.31,0.05235024]
[1742482957126,46.14385666,130.33,130.22,4.0811]
[1742482957326,50.17746812,130.33,130.22,4.0811]
[1742482957926,4.0869,130.33,130.23,46.09056812]
[1742482958321,0.05485285,130.29,130.23,46.09056812]
[1742482958528,0.05485285,130.29,130.28,7.6786]
[1742482959030,365.0,130.37,130.26,78.91056812]
[1742482959031,369.0869,130.37,130.26,78.91056812]
[1742482959222,369.0869,130.37,130.29,46.09056812]
[1742482959424,4.0956,130.41,130.3,36.9498]
[1742482959624,4.0956,130.41,130.31,46.09056812]
[1742482960131,46.09056812,130.4,130.3,32.86]
[1742482960332,0.05442311,130.37,130.35,0.05696868]
[1742482962634,0.05442311,130.37,130.35,7.73146868]
[1742482963031,0.05442311,130.37,130.35,0.05696868]
[1742482963535,0.05442311,130.37,130.36,7.6739]
[1742482963927,0.05442311,130.37,130.35,0.05696868]
[1742482965230,0.05442311,130.37,130.35,7.73136868]
[1742482965430,0.05442311,130.37,130.35,0.05696868]
[1742482966334,0.05442311,130.37,130.29,4.3566]
[1742482966535,32.78,130.38,130.29,4.3566]
[1742482966830,46.09056812,130.36,130.27,32.7]
[1742482967031,32.7,130.35,130.27,32.7]
[1742482967226,411.09056812,130.34,130.26,7.6792]
[1742482967425,46.09056812,130.28,130.1,15.3775]
[1742482967630,365.0,130.33,130.11,1.41117499]
[1742482967631,46.09056812,130.24,130.11,1.41117499]
[1742482967931,46.09056812,130.24,130.07,4.3204]
[1742482967932,0.05211419,130.19,130.09,32.78]
[1742482968129,32.82,130.2,130.11,46.09056812]
[1742482968332,0.05391696,130.15,130.11,46.09056812]
[1742482968540,32.82,130.2,130.11,46.09056812]
[1742482968934,397.96,130.23,130.14,46.09056812]
[1742482969235,397.96,130.23,130.15,32.96]
[1742482969437,397.96,130.23,130.2,7.6829]
[1742482969836,398.01751825,130.23,130.2,7.6829]
[1742482970032,398.01751825,130.23,130.18,0.0538422]
[1742482970430,365.05751825,130.23,130.18,32.9738422]
[1742482971033,365.05751825,130.23,130.2,7.6832]
[1742482971234,365.05751825,130.23,130.18,0.0538422]
[1742482971629,402.20931825,130.23,130.18,0.0538422]
[1742482971836,46.09056812,130.22,130.18,0.0538422]
[1742482972034,402.20931825,130.23,130.0,1.33709873]
[1742482972035,7.6862,130.16,130.11,7.6886]
[1742482972341,7.6862,130.16,130.01,253.28]
[1742482972342,46.09056812,130.12,130.01,299.37056812]
[1742482972547,46.09056812,130.1,129.96,261.3269]
[1742482972839,34.9,130.11,129.99,46.09056812]
[1742482973040,399.9,130.11,129.99,46.09056812]
[1742482973232,365.0,130.1,129.99,46.09056812]
[1742482973434,0.0559764,130.06,129.99,46.09056812]
[1742482973741,0.0559764,130.06,130.05,7.6922]
[1742482974231,99.91711264,130.06,129.88,359.0]
[1742482974437,46.09056812,130.0,129.89,4.2133]
[1742482974632,46.09056812,129.97,129.89,4.2133]
[1742482974835,400.9,129.99,129.89,4.2133]
[1742482975143,3.441e-05,129.94,129.91,46.09056812]
[1742482975340,3.441e-05,129.94,129.9,36.06]
[1742482975644,82.17056812,129.98,129.89,4.2133]
[1742482976232,46.1463109,129.95,129.92,0.05456844]
[1742482976431,36.18,129.94,129.92,0.05456844]
[1742482976635,654.78,129.93,129.81,413.73043208]
[1742482976842,46.09056812,129.91,129.81,413.73043208]
[1742482977037,82.39056812,129.91,129.81,413.73043208]
[1742482977243,46.09056812,129.88,129.77,46.09056812]
[1742482977537,46.09056812,129.88,129.78,36.32]
[1742482977841,0.0496752,129.84,129.78,36.32]
[1742482978032,0.0496752,129.84,129.76,46.09056812]
[1742482978237,401.4,129.87,129.76,46.09056812]
[1742482978439,0.05166329,129.81,129.77,90.19926812]
[1742482978743,46.09056812,129.89,129.77,82.49056812]
[1742482979143,53.79276812,129.89,129.76,46.09056812]
[1742482979444,46.09056812,129.86,129.77,37.36]
[1742482979738,0.05690113,129.83,129.8,0.05651011]
[1742482980637,46.09056812,129.81,129.8,0.05651011]
[1742482980843,46.09056812,129.78,129.67,37.78]
[1742482981041,37.92,129.77,129.58,1.34127305]
[1742482981245,37.92,129.77,129.57,359.0]
[1742482981246,46.09056812,129.63,129.57,342.01084028]
[1742482981545,46.09056812,129.6,129.41,38.52]
[1742482981738,292.5,129.59,129.46,7.7269]
[1742482981937,46.09056812,129.49,129.29,465.21880223]
[1742482982138,46.09056812,129.5,129.3,8.3749]
[1742482982340,39.3,129.54,129.4,46.09056812]
[1742482982543,1523.46,129.74,129.41,52.073]
[1742482982544,46.09056812,129.56,129.41,52.073]
[1742482982742,0.05901682,129.48,129.42,293.34]
[1742482982938,0.05901682,129.48,129.41,12.673]
[1742482983239,0.0576682,129.46,129.41,12.673]
[1742482983448,0.0576682,129.46,129.41,58.76356812]
[1742482983640,46.09056812,129.57,129.44,46.09056812]
[1742482983840,365.0,129.6,129.45,297.6]
[1742482984044,253.9,129.59,129.31,1.54667079]
[1742482984365,343.0,129.58,129.36,46.09056812]
[1742482984542,46.09056812,129.57,129.4,46.09056812]
[1742482984835,0.05126863,129.48,129.46,0.05300252]